bitfinex/quotes_ETHUSD_20240719
["timestamp","ask_amount","ask_price","bid_price","bid_amount"]
[1721391327366,3.5402,3410.7,3410.1,2.93244]
[1721391327563,0.940385,3410.6,3410.1,2.93244]
[1721391330064,0.940385,3410.6,3410.3,2.93227]
[1721391330350,1.054,3410.7,3410.1,2.93244]
[1721391330849,1.054,3410.5,3410.1,2.93244]
[1721391331447,3.429,3410.6,3410.1,2.93244]
[1721391332639,2.375,3410.6,3410.2,2.93237]
[1721391333830,2.375,3410.6,3410.0,2.93248]
[1721391334154,1.690096,3410.5,3409.9,2.9326]
[1721391334741,1.690096,3410.5,3410.1,2.93244]
[1721391335157,1.054,3410.3,3409.9,2.9326]
[1721391336022,3.568226,3410.5,3409.9,2.9326]
[1721391336023,4.622226,3410.5,3409.9,2.9326]
[1721391337064,1.054,3410.3,3409.9,2.9326]
[1721391338635,1.690096,3410.5,3410.0,2.93254]
[1721391339343,2.93192,3410.8,3410.0,5.28254]
[1721391339548,1.054,3410.8,3410.2,2.93232]
[1721391339842,10.42169,3411.0,3410.4,2.9322]
[1721391340052,2.93169,3411.0,3410.4,2.9322]
[1721391340245,3.62342,3411.0,3410.4,2.9322]
[1721391340580,1.054,3410.9,3410.4,2.9322]
[1721391341140,1.054,3410.9,3410.5,2.9321]
[1721391342940,1.054,3410.7,3410.3,2.93225]
[1721391343140,1.054,3410.7,3410.4,2.93218]
[1721391343442,1.521742,3410.7,3410.4,2.93218]
[1721391343649,1.054,3410.9,3410.5,2.93212]
[1721391343853,1.054,3410.9,3410.5,5.20262]
[1721391344856,0.69173,3411.0,3410.5,5.20262]
[1721391345277,1.054,3410.9,3410.5,5.20262]
[1721391347433,1.054,3410.9,3410.5,2.93212]
[1721391347647,1.814887,3410.9,3410.5,2.93212]
[1721391349373,1.814887,3410.9,3410.4,2.9322]
[1721391349374,1.054,3410.7,3410.4,2.9322]
[1721391352082,1.054,3410.5,3410.2,2.93237]
[1721391353405,1.054,3410.5,3410.0,2.93251]
[1721391353613,1.054,3410.3,3410.0,2.93251]
[1721391353994,1.054,3410.1,3409.8,2.93265]
[1721391354195,1.054,3410.1,3409.6,0.9161597]
[1721391354196,1.054,3410.1,3409.9,3.95240904]
[1721391354399,1.054,3410.1,3409.9,2.93262]
[1721391354596,1.054,3410.3,3409.9,2.93262]
[1721391354930,1.054,3410.1,3409.8,2.93272]
[1721391357139,0.398612,3410.3,3409.8,2.93272]
[1721391357140,1.452612,3410.3,3409.8,2.93272]
[1721391358352,1.452612,3410.3,3409.8,2.93267]
[1721391358949,1.452612,3410.3,3409.9,2.93263]
[1721391363257,1.452612,3410.3,3409.7,2.93274]
[1721391363421,3.4509,3410.1,3409.5,3.54371313]
[1721391363636,1.054,3409.9,3409.6,5.48241885]
[1721391363957,1.054,3409.9,3409.7,1.01981154]
[1721391364127,1.054,3409.9,3409.6,2.93289]
[1721391364327,1.054,3409.9,3409.7,1.01978842]
[1721391364570,2.3969,3410.1,3409.6,2.93289]
[1721391364893,1.054,3409.9,3409.7,1.01978843]
[1721391365070,1.054,3409.9,3409.6,2.93289]
[1721391367755,4.277058,3410.1,3409.6,2.93289]
[1721391370474,1.054,3409.9,3409.4,2.93306]
[1721391370632,1.7749508,3409.9,3409.4,2.93306]
[1721391372272,1.7749508,3409.9,3409.2,5.38917]
[1721391372475,1.054,3409.7,3409.2,2.93317]
[1721391372687,1.054,3409.7,3409.0,2.93339]
[1721391372688,1.054,3409.5,3408.8,3.54432313]
[1721391372859,1.054,3409.1,3408.6,2.9337]
[1721391373184,1.054,3408.9,3408.4,2.93389]
[1721391373640,1.054,3408.9,3408.5,2.93383]
[1721391373839,2.93301,3409.5,3408.8,2.93357]
[1721391374072,2.631233,3409.5,3408.9,2.93344]
[1721391374275,2.4165,3409.9,3409.3,2.93307]
[1721391374479,12.47,3410.3,3409.4,2.376]
[1721391374480,2.4165,3410.2,3409.4,2.376]
[1721391374769,3.98637,3410.3,3409.4,2.376]
[1721391375077,3.98637,3410.3,3409.7,2.9328]
[1721391375584,1.054,3410.1,3409.7,2.9328]
[1721391376142,2.93237,3410.3,3409.7,2.9328]
[1721391376336,4.509469,3410.3,3409.7,2.9328]
[1721391377439,1.577099,3410.3,3409.5,2.93296]
[1721391377640,2.53,3410.8,3409.8,2.93271]
[1721391377882,2.93192,3410.8,3410.0,2.93247]
[1721391378040,12.26479243,3411.5,3410.2,2.3068]
[1721391378041,2.93161,3411.1,3410.2,2.3068]
[1721391378241,2.9317,3411.0,3410.2,2.3068]
[1721391378544,2.9317,3411.0,3410.2,5.23911]
[1721391379544,3.518022,3411.0,3410.2,5.23911]
[1721391380296,3.518022,3411.0,3410.3,2.93229]
[1721391380511,2.9316,3411.1,3410.5,2.93211]
[1721391384996,2.9316,3411.1,3410.5,2.80153562]
[1721391387153,2.93169,3411.0,3410.3,2.93228]
[1721391387353,2.93169,3411.0,3410.2,2.3068]
[1721391387354,0.293169,3410.9,3410.4,2.93219]
[1721391389082,2.4833,3410.8,3410.2,2.93237]
[1721391389282,5.41517,3410.8,3410.0,2.93252]
[1721391389470,0.5708159,3410.7,3410.0,2.93252]
[1721391390587,3.5028359,3410.7,3410.0,2.93252]
[1721391390764,2.93218,3410.5,3409.7,2.93274]
[1721391391283,2.4275,3410.2,3409.6,2.93286]
[1721391391487,2.4275,3410.2,3409.7,2.9328]
[1721391392087,2.4275,3410.2,3409.5,2.93296]
[1721391392088,5.35988,3410.2,3409.5,2.93296]
[1721391392253,6.18908,3410.2,3409.6,2.93287]
[1721391392683,3.2567,3410.2,3409.6,2.93287]
[1721391393256,2.4275,3410.2,3409.6,2.93287]
[1721391395195,2.4275,3410.2,3409.7,2.9328]
[1721391395393,3.02803,3410.6,3410.0,2.93255]
[1721391395814,2.93221,3410.4,3409.6,2.93283]
[1721391396317,2.93221,3410.4,3409.7,2.9328]
[1721391397796,2.93221,3410.4,3409.8,2.9327]
[1721391398888,2.9323,3410.3,3409.6,2.93283]
[1721391399188,2.3769,3410.2,3409.6,2.93283]
[1721391399791,2.3769,3410.2,3409.7,2.9328]
[1721391400785,5.856383,3410.5,3409.8,2.93271]
[1721391400992,5.856383,3410.5,3410.0,2.93254]
[1721391400993,2.3769,3410.5,3410.0,2.93254]
[1721391401387,3.02804,3410.6,3410.0,2.93254]
[1721391401688,3.02804,3410.6,3409.9,2.93257]
[1721391402431,2.93221,3410.4,3409.9,2.93257]
[1721391404427,3.528235,3410.4,3409.9,2.93257]
[1721391405898,3.02804,3410.6,3409.5,2.2601]
[1721391406130,0.096,3410.6,3410.3,2.93224]
[1721391406989,0.096,3410.6,3410.4,2.93218]
[1721391407312,0.096,3410.6,3410.5,2.93212]
[1721391410143,0.096,3410.6,3410.5,6.65869046]
[1721391410357,0.096,3410.6,3410.5,3.72657046]
[1721391412049,0.096,3410.6,3410.5,2.93212]
[1721391412883,0.096,3410.6,3410.5,8.24174]
[1721391414140,0.096,3410.6,3410.5,11.17386]
[1721391415081,0.096,3410.6,3410.5,2.3775]
[1721391420548,0.096,3410.6,3410.5,3.39698449]
[1721391420883,0.096,3410.6,3410.5,3.79776025]
[1721391421085,0.096,3410.6,3410.5,2.77827576]
[1721391421279,0.096,3410.6,3410.5,3.79776028]
[1721391422452,0.096,3410.6,3410.5,5.32697378]
[1721391422956,0.096,3410.6,3410.5,5.38560239]
[1721391424089,0.096,3410.6,3410.5,2.83690437]
[1721391424390,0.096,3410.6,3410.5,5.38552475]
[1721391424688,0.096,3410.6,3410.5,5.32693452]
[1721391426901,0.096,3410.6,3410.5,3.79773926]
[1721391427081,0.096,3410.6,3410.5,5.32693862]
[1721391427282,0.096,3410.6,3410.5,5.32692601]
[1721391428169,2.2923,3411.7,3410.5,5.93769914]
[1721391428475,2.2923,3411.7,3410.6,3.23403613]
[1721391428672,2.2923,3411.7,3410.6,0.68538588]
[1721391429200,2.2923,3411.7,3410.6,2.21448786]
[1721391429361,2.2923,3411.7,3410.6,0.74400957]
[1721391429563,2.2923,3411.7,3410.7,1.01941646]
[1721391429865,2.2923,3411.7,3410.8,0.50938512]
[1721391430265,2.2643,3412.3,3410.9,2.33]
[1721391430802,2.2643,3412.3,3410.9,5.33]
[1721391431503,2.2643,3412.3,3410.9,3.0]
[1721391431705,3.882854,3412.5,3410.5,6.7976154]
[1721391431706,2.2623,3411.9,3410.5,6.7976154]
[1721391431893,2.2623,3411.9,3410.5,6.10095482]
[1721391433976,2.2623,3411.9,3410.7,2.357]
[1721391434209,2.2623,3411.9,3410.7,5.357]
[1721391434389,2.2623,3411.9,3410.7,2.357]
[1721391434574,2.2623,3411.9,3410.8,4.08096118]
[1721391434780,2.2623,3411.9,3410.8,1.08096118]
[1721391435096,2.2623,3411.9,3410.8,4.08096118]
[1721391444100,2.2623,3411.9,3410.8,4.13958223]
[1721391444301,2.2623,3411.9,3410.8,4.08096118]
[1721391444605,2.2623,3411.9,3410.9,0.95289612]
[1721391445338,2.2623,3411.9,3411.1,2.4014]
[1721391445643,3.882854,3412.5,3411.1,2.4014]
[1721391445644,2.4482,3412.2,3411.2,2.5480379]
[1721391445865,2.4482,3412.2,3411.3,2.54796285]
[1721391446000,2.4482,3412.2,3411.4,3.8560136]
[1721391446557,2.4482,3412.2,3411.4,0.8560136]
[1721391452618,2.4482,3412.2,3411.0,3.0]
[1721391452920,2.4482,3412.2,3410.7,0.61077313]
[1721391453136,3.882854,3412.5,3410.5,1.44322795]
[1721391453137,2.53,3411.9,3410.5,1.44322795]
[1721391453420,2.2726,3411.8,3410.6,2.5486521]
[1721391453652,2.2726,3411.8,3410.7,2.5486521]
[1721391453873,2.2726,3411.8,3410.8,1.41862435]
[1721391454171,2.2726,3411.8,3410.8,0.399188]
[1721391454477,2.2726,3411.8,3410.6,0.61077313]
[1721391454645,2.2726,3411.8,3410.7,2.548557]
[1721391454844,2.2726,3411.8,3410.8,2.548557]
[1721391455044,2.2726,3411.8,3410.9,3.0]
[1721391455245,2.2726,3411.8,3410.6,3.61077313]
[1721391455453,2.2726,3411.8,3410.7,3.28845192]
[1721391455771,2.2726,3411.8,3410.9,0.61077313]
[1721391455977,2.2726,3411.8,3411.0,2.54853265]
[1721391456156,2.2726,3411.8,3411.1,1.01941306]
[1721391456356,2.2726,3411.8,3410.9,0.61077313]
[1721391456645,2.2726,3411.8,3411.0,3.2790372]
[1721391456849,2.2726,3411.8,3411.1,1.01934859]
[1721391457166,2.2726,3411.8,3411.0,0.73066572]
[1721391458087,2.2726,3411.8,3411.1,1.01936813]
[1721391458377,2.2726,3411.8,3411.0,0.73066572]
[1721391458538,2.2726,3411.8,3411.1,1.01936069]
[1721391458724,2.2726,3411.8,3411.0,0.73066572]
[1721391458925,2.2726,3411.8,3411.1,1.01935372]
[1721391459132,2.2726,3411.8,3410.8,0.61077313]
[1721391459455,2.2726,3411.8,3410.9,3.15918843]
[1721391459656,2.2726,3411.8,3411.0,5.5484153]
[1721391459948,2.2726,3411.8,3411.1,1.01936612]
[1721391460158,2.2726,3411.8,3410.9,0.61077313]
[1721391460356,2.2726,3411.8,3411.0,2.54841703]
[1721391460530,2.2726,3411.8,3410.7,3.61077313]
[1721391460724,2.2726,3411.8,3410.5,0.61077313]
[1721391460928,2.2726,3411.8,3410.6,2.54872306]
[1721391461125,2.2726,3411.8,3410.7,3.0]
[1721391461380,2.49986,3411.8,3410.7,0.66107731]
[1721391461966,2.49986,3411.8,3410.5,3.0]
[1721391462271,2.53,3411.5,3410.6,1.01952659]
[1721391462480,2.4911,3411.4,3410.2,3.61077313]
[1721391462633,2.4911,3411.4,3410.3,2.54900388]
[1721391462828,2.4911,3411.4,3410.0,2.95521289]
[1721391462829,2.4911,3411.2,3410.1,0.61077313]
[1721391463056,2.4911,3411.2,3410.2,3.1598711]
[1721391463253,2.4911,3411.2,3410.3,2.54909797]
[1721391463530,2.4911,3411.2,3410.4,1.01963919]
[1721391463724,2.4911,3411.2,3410.5,1.01956924]
[1721391463964,3.043421,3411.2,3410.2,0.61077313]
[1721391464140,3.043421,3411.2,3410.3,3.15966955]
[1721391464342,3.043421,3411.2,3410.4,3.0]
[1721391464664,2.4911,3411.2,3410.5,1.01956611]
[1721391464843,2.4911,3411.2,3410.6,1.01953163]
[1721391465044,2.4911,3411.2,3410.7,1.01948789]
[1721391465269,2.4911,3411.9,3410.8,2.54867713]
[1721391465580,2.4911,3411.9,3410.9,1.01947085]
[1721391465781,2.4911,3411.9,3410.5,3.97478181]
[1721391465782,2.4911,3411.9,3411.0,1.18243276]
[1721391465970,2.4911,3411.9,3411.0,0.1630244]
[1721391466486,2.4911,3411.9,3411.1,2.54839597]
[1721391466675,2.4911,3411.9,3411.2,1.01936885]
[1721391466982,2.4911,3411.9,3411.0,0.77379753]
[1721391467191,2.4911,3411.9,3411.1,3.62801772]
[1721391467400,2.4911,3411.9,3411.2,2.54824575]
[1721391467696,2.4911,3411.9,3411.1,0.46899572]
[1721391467860,2.4911,3411.9,3411.2,1.01933084]
[1721391468069,2.4911,3411.9,3411.1,0.46899572]
[1721391468261,2.4911,3411.9,3411.2,0.42427933]
[1721391468584,2.4911,3411.9,3411.0,0.1630244]
[1721391468795,2.4911,3411.9,3411.1,2.54842043]
[1721391469040,2.4911,3411.9,3411.0,0.1630244]
[1721391469152,2.4911,3411.9,3411.1,2.54836895]
[1721391469353,2.4911,3411.9,3411.2,1.01934758]
[1721391469603,2.4911,3411.9,3411.0,0.77379753]
[1721391469891,2.4911,3411.9,3411.1,3.08181408]
[1721391470192,2.4391,3412.4,3411.2,1.01933486]
[1721391470401,2.4391,3412.4,3411.1,2.95505765]
[1721391470551,2.4391,3412.4,3411.2,1.01933256]
[1721391470752,2.4391,3412.4,3411.3,3.02302257]
[1721391470952,2.4391,3412.4,3411.3,0.47481877]
[1721391471753,2.4391,3412.4,3411.4,1.01927156]
[1721391471960,2.4391,3412.4,3411.3,0.47481877]
[1721391472198,2.4391,3412.4,3411.4,2.54811621]
[1721391472354,2.4391,3412.4,3411.3,1.0855919]
[1721391472355,2.4391,3412.4,3411.5,3.21142028]
[1721391472553,2.4391,3412.4,3411.6,1.01924648]
[1721391472765,2.4391,3412.4,3411.5,0.66337081]
[1721391472988,2.4391,3412.4,3411.6,1.0191958]
[1721391473154,2.4391,3412.4,3411.5,0.66337081]
[1721391473355,2.4391,3412.4,3411.6,1.49993048]
[1721391473556,2.4391,3412.4,3411.6,0.48075758]
[1721391474856,2.4391,3412.4,3411.3,1.14420286]
[1721391475054,2.4391,3412.4,3411.4,3.15876854]
[1721391475320,2.4391,3412.4,3411.5,2.60660594]
[1721391475458,2.4391,3412.4,3411.6,1.01919816]
[1721391475659,2.4391,3412.4,3411.7,0.0586105]
[1721391475867,2.4391,3412.4,3411.8,0.05861068]
[1721391476192,2.4391,3412.4,3411.4,1.52876919]
[1721391476406,2.4391,3412.4,3411.5,3.10943313]
[1721391476576,2.4391,3412.4,3411.6,0.058611]
[1721391476993,2.4391,3412.4,3411.8,2.93096]
[1721391477193,2.4391,3412.4,3412.0,2.93077]
[1721391477373,2.4391,3412.4,3412.1,2.93072]
[1721391481292,2.4391,3412.4,3412.2,2.93059]
[1721391482901,3.882854,3412.5,3412.4,2.93048]
[1721391483480,3.882854,3412.5,3412.4,5.86096]
[1721391487108,3.882854,3412.5,3412.4,8.86096]
[1721391490115,3.882854,3412.5,3412.4,5.93048]
[1721391490590,6.207954,3412.5,3412.4,5.93048]
[1721391490786,6.207954,3412.5,3411.9,2.93091]
[1721391493288,2.93058,3412.3,3411.7,2.93108]
[1721391493681,2.93058,3412.3,3411.5,2.93123]
[1721391493682,10.0522444,3412.5,3411.8,2.93099]
[1721391494307,9.138414,3412.5,3411.8,2.93099]
[1721391494511,9.138414,3412.5,3411.6,2.93116]
[1721391494512,2.93055,3412.4,3411.7,2.93106]
[1721391495728,2.93055,3412.4,3411.8,2.93099]
[1721391496092,9.138364,3412.5,3411.6,2.93116]
[1721391496291,2.93074,3412.1,3411.5,2.93125]
[1721391496524,2.93074,3412.1,3411.5,4.59800588]
[1721391497931,5.19173,3412.3,3411.6,2.93117]
[1721391498198,5.19173,3412.3,3411.4,2.93134]
[1721391498199,5.19173,3412.3,3411.7,2.93108]
[1721391498729,2.2611,3412.3,3411.8,2.98960727]
[1721391498894,2.2611,3412.3,3412.0,2.93083]
[1721391499641,3.882854,3412.5,3412.0,0.586182]
[1721391499808,3.882854,3412.5,3412.3,2.93054]
[1721391500389,3.882854,3412.5,3412.4,2.93048]
[1721391501261,3.882854,3412.5,3412.4,5.86096]
[1721391511277,3.882854,3412.5,3412.0,2.93081]
[1721391511278,6.267454,3412.5,3412.0,2.93081]
[1721391511471,6.267454,3412.5,3412.1,0.293081]
[1721391511780,6.267454,3412.5,3412.1,3.223811]
[1721391512842,6.267454,3412.5,3412.1,0.293081]
[1721391513681,6.267454,3412.5,3412.1,3.223821]
[1721391517368,6.267454,3412.5,3412.1,2.93074]
[1721391517695,6.267454,3412.5,3412.2,2.93065]
[1721391518753,3.882854,3412.5,3412.3,2.93055]
[1721391518972,3.882854,3412.5,3412.4,2.93048]
[1721391521585,6.246554,3412.5,3412.2,2.93063]
[1721391524875,6.246554,3412.5,3412.0,2.93077]
[1721391525088,6.246554,3412.5,3411.9,2.93088]
[1721391525494,9.176954,3412.5,3411.9,2.93088]
[1721391525681,10.229954,3412.5,3411.9,2.93088]
[1721391527167,9.176954,3412.5,3411.9,2.93088]
[1721391527478,9.176954,3412.5,3411.9,3.517075]
[1721391531496,9.176954,3412.5,3411.9,2.93088]
[1721391533584,6.246554,3412.5,3411.9,3.98388]
[1721391533999,6.246554,3412.5,3412.1,2.93073]
[1721391534673,6.246554,3412.5,3411.9,6.91473]
[1721391535455,6.246554,3412.5,3412.0,2.93082]
[1721391539478,9.177004,3412.5,3411.9,3.98391]
[1721391539868,9.177004,3412.5,3411.7,3.98402]
[1721391540522,9.177004,3412.5,3411.7,4.73662431]
[1721391541898,6.246554,3412.5,3411.9,2.93084]
[1721391542110,6.246554,3412.5,3411.9,3.98384]
[1721391543095,6.246554,3412.5,3412.2,2.93065]
[1721391543513,6.246554,3412.5,3412.0,2.93077]
[1721391543711,6.246554,3412.5,3412.1,0.939161]
[1721391544702,6.246554,3412.5,3412.1,3.869861]
[1721391545721,3.882854,3412.5,3412.3,2.93048]
[1721391545926,3.882854,3412.5,3412.4,2.93048]
[1721391549887,3.882854,3412.5,3412.4,8.29506]
[1721391550123,3.882854,3412.5,3412.4,12.24141338]
[1721391550343,3.882854,3412.5,3412.4,12.24134771]
[1721391550574,3.882854,3412.5,3412.4,12.24134318]
[1721391553212,3.882854,3412.5,3412.4,9.69395941]
[1721391553399,3.882854,3412.5,3412.4,12.24133676]
[1721391553611,3.882854,3412.5,3412.4,9.69395941]
[1721391553928,3.882854,3412.5,3412.4,12.24130306]
[1721391554328,3.882854,3412.5,3412.4,15.72178306]
[1721391554628,3.882854,3412.5,3412.4,16.33525323]
[1721391556646,3.882854,3412.5,3412.4,13.78790958]
[1721391556860,3.882854,3412.5,3412.4,16.33516358]
[1721391557052,3.882854,3412.5,3412.4,6.87663341]
[1721391557226,3.882854,3412.5,3412.4,2.93048]
[1721391557917,3.882854,3412.5,3412.2,2.93061]
[1721391558309,3.882854,3412.5,3412.3,2.93054]
[1721391558510,3.882854,3412.5,3412.2,2.93066]
[1721391560425,3.882854,3412.5,3412.1,2.93073]
[1721391561043,3.882854,3412.5,3412.2,2.93064]
[1721391561249,3.882854,3412.5,3412.4,5.86096]
[1721391561565,3.882854,3412.5,3412.4,6.91396]
[1721391561938,3.882854,3412.5,3412.4,7.93292174]
[1721391562135,3.882854,3412.5,3412.4,6.87992174]
[1721391563285,3.882854,3412.5,3412.4,5.86096]
[1721391563446,3.882854,3412.5,3412.4,7.21215248]
[1721391565676,3.882854,3412.5,3412.4,5.86096]
[1721391566847,3.882854,3412.5,3412.4,2.93048]
[1721391569391,3.882854,3412.5,3412.4,5.86096]
[1721391569896,3.882854,3412.5,3412.4,2.93048]
[1721391571171,6.297954,3412.5,3412.1,2.93074]
[1721391573365,11.6024924,3412.5,3411.9,2.93085]
[1721391573568,1.053,3412.3,3411.9,2.93085]
[1721391574297,10.281354,3412.5,3411.9,2.93085]
[1721391575602,7.350954,3412.5,3412.0,2.93082]
[1721391576012,7.350954,3412.5,3411.8,5.86194]
[1721391576207,7.350954,3412.5,3411.8,2.93094]
[1721391576516,7.350954,3412.5,3411.9,2.9309]
[1721391580702,7.350954,3412.5,3412.0,2.9308]
[1721391580902,6.297954,3412.5,3412.0,2.9308]
[1721391581106,6.297954,3412.5,3412.1,2.93072]
[1721391581311,6.297954,3412.5,3412.3,2.93049]
[1721391581312,3.882854,3412.5,3412.3,2.93049]
[1721391581484,3.882854,3412.5,3412.4,2.93048]
[1721391585892,3.882854,3412.5,3412.2,2.93065]
[1721391586492,3.882854,3412.5,3412.3,2.93055]
[1721391587727,3.882854,3412.5,3412.2,2.93065]
[1721391591512,3.882854,3412.5,3411.9,0.61332782]
[1721391591721,2.2523,3412.4,3411.9,2.93086]
[1721391592117,2.2523,3412.4,3412.0,1.01914746]
[1721391592422,2.2523,3412.4,3412.0,3.94996746]
[1721391593429,2.2523,3412.4,3412.0,2.93082]
[1721391593737,2.2523,3412.4,3412.0,5.86157]
[1721391594230,3.882854,3412.5,3412.3,2.93051]
[1721391594445,3.882854,3412.5,3412.1,1.01912854]
[1721391594446,3.882854,3412.5,3412.1,2.93068]
[1721391594614,3.882854,3412.5,3412.2,2.93062]
[1721391595944,2.2599,3412.4,3412.0,2.93079]
[1721391596098,2.2599,3412.4,3411.8,2.93093]
[1721391596435,6.24341,3412.4,3411.8,2.93093]
[1721391596625,7.5490694,3412.4,3411.8,2.93093]
[1721391597303,2.93063,3412.3,3411.6,2.93113]
[1721391598034,1.053,3412.2,3411.6,2.93113]
[1721391598239,3.98367,3412.2,3411.6,2.93113]
[1721391598540,2.93075,3412.1,3411.4,5.93131]
[1721391599241,3.98387,3412.0,3411.2,3.54480782]
[1721391599445,3.98387,3412.0,3411.3,5.4797087]
[1721391599446,2.4082,3411.9,3411.3,5.4797087]
[1721391599735,1.053,3411.8,3411.3,2.93142]
[1721391599947,3.98402,3411.8,3411.1,2.9316]
[1721391600109,3.98402,3411.8,3411.2,1.77233364]
[1721391600304,3.98402,3411.8,3411.2,0.75296878]
[1721391600509,3.98402,3411.8,3411.2,3.68446878]
[1721391600793,5.33912,3411.9,3411.2,3.68446878]
[1721391601567,3.98401,3411.8,3411.0,2.93164]
[1721391601768,1.053,3411.6,3411.0,2.93164]
[1721391601973,4.2361894,3412.4,3410.7,3.54524782]
[1721391601974,2.93144,3411.3,3410.7,3.54524782]
[1721391602137,1.053,3411.4,3410.8,1.01948633]
[1721391602341,1.053,3411.4,3410.7,2.93192]
[1721391602650,3.98436,3411.4,3410.8,1.6672069]
[1721391602860,3.98436,3411.4,3410.7,2.93192]
[1721391603059,3.98436,3411.4,3410.8,1.01948755]
[1721391603252,3.98436,3411.4,3410.7,2.93192]
[1721391604276,1.053,3411.2,3410.7,2.93192]
[1721391606088,2.93136,3411.4,3410.7,2.93192]
[1721391606390,1.053,3411.3,3410.7,3.818323]
[1721391606837,1.053,3411.3,3410.7,2.93192]
[1721391607043,1.053,3411.1,3410.7,2.93192]
[1721391610367,1.053,3411.1,3410.5,2.93211]
[1721391612101,2.3083,3411.0,3410.4,3.0]
[1721391612402,1.053,3410.9,3410.4,3.0]
[1721391613611,1.053,3410.9,3410.4,5.9322]
[1721391613810,1.053,3410.7,3410.2,2.93232]
[1721391614009,1.053,3410.5,3410.0,5.35668]
[1721391614213,1.053,3410.5,3410.0,2.93248]
[1721391614492,1.053,3410.5,3410.1,2.93245]
[1721391615385,1.053,3410.5,3410.0,1.17936373]
[1721391615814,1.053,3410.5,3410.1,2.93246]
[1721391615994,1.053,3410.5,3410.0,4.11191373]
[1721391616184,1.053,3410.5,3410.1,2.93246]
[1721391617186,2.93181,3410.9,3410.2,2.93237]
[1721391617414,1.053,3410.8,3410.2,2.93237]
[1721391617728,6.293,3411.0,3410.3,5.18747]
[1721391618227,2.93178,3410.9,3410.3,2.93227]
[1721391618895,1.053,3410.8,3410.3,2.93227]
[1721391619312,3.98493,3410.8,3410.1,2.93244]
[1721391619564,2.93196,3410.7,3410.1,2.93244]
[1721391620349,1.053,3410.6,3410.1,2.93244]
[1721391620495,1.053,3410.6,3409.9,5.93257]
[1721391620697,1.053,3410.6,3410.0,2.93249]
[1721391622153,1.053,3410.6,3410.1,2.93244]
[1721391625952,2.93196,3410.7,3410.1,2.93244]
[1721391626267,1.053,3410.8,3410.2,2.93237]
[1721391626639,3.98486,3410.8,3410.2,2.93237]
[1721391626834,3.98486,3410.8,3410.2,1.0521557]
[1721391627079,3.98486,3410.8,3410.1,2.93245]
[1721391627551,2.93195,3410.7,3410.1,2.93245]
[1721391628059,1.053,3410.6,3410.1,2.93245]
[1721391629444,1.053,3410.6,3410.2,2.93237]
[1721391629763,1.053,3410.6,3410.0,2.93248]
[1721391629948,1.053,3410.6,3410.1,0.586508]
[1721391631954,3.98506,3410.6,3410.1,0.586508]
[1721391632278,1.053,3410.4,3409.9,2.9326]
[1721391632839,1.053,3410.0,3409.5,2.93296]
[1721391633046,1.053,3409.8,3409.5,2.93296]
[1721391633539,1.053,3409.8,3409.3,2.93312]
[1721391639208,1.053,3409.8,3409.1,2.93326]
[1721391639433,1.053,3409.8,3409.2,3.0]
[1721391639711,2.93333,3409.1,3408.4,5.34667]
[1721391639931,1.053,3408.9,3408.4,5.34667]
[1721391640267,1.053,3408.9,3408.5,2.93384]
[1721391640481,1.053,3408.9,3408.5,3.761902]
[1721391640998,1.053,3408.9,3408.5,2.93384]
[1721391641179,1.053,3408.6,3408.2,5.23817]
[1721391641696,1.053,3408.8,3408.2,5.23817]
[1721391642275,1.053,3408.5,3408.0,2.9342]
[1721391642583,1.053,3408.5,3408.1,2.93418]
[1721391642786,1.053,3408.5,3408.0,0.81736244]
[1721391643112,6.31363,3408.7,3408.0,3.75160244]
[1721391643420,1.053,3408.5,3408.0,3.75160244]
[1721391643910,3.3799,3408.7,3408.1,2.93411]
[1721391644302,3.3799,3408.7,3408.1,3.87234412]
[1721391644881,2.3269,3408.7,3408.1,3.87234412]
[1721391645111,3.3799,3408.7,3408.1,3.87234412]
[1721391645316,2.3269,3408.7,3408.1,0.93823412]
[1721391645629,2.4116,3409.0,3408.5,2.93381]
[1721391645793,2.4116,3409.0,3408.3,2.93395]
[1721391645991,5.34501,3409.0,3408.4,2.93392]
[1721391646196,1.053,3408.8,3408.4,2.93392]
[1721391646592,3.4646,3409.0,3408.4,2.93392]
[1721391646793,3.4646,3409.0,3408.5,2.93383]
[1721391647217,1.053,3408.8,3408.5,2.93383]
[1721391647484,1.053,3408.8,3408.3,2.93396]
[1721391648207,1.053,3408.6,3408.3,2.93396]
[1721391648933,2.93349,3408.9,3408.3,2.93396]
[1721391648934,1.053,3408.8,3408.3,2.93396]
[1721391649425,1.053,3408.4,3408.3,2.93396]
[1721391649631,1.053,3408.6,3408.3,2.93396]
[1721391649847,1.053,3408.6,3408.0,2.93424]
[1721391649994,1.053,3408.4,3407.9,3.0]
[1721391650191,1.053,3408.2,3407.9,2.93434]
[1721391650639,1.053,3408.4,3407.9,2.93434]
[1721391650991,2.3747,3408.5,3407.9,2.93434]
[1721391651133,1.053,3408.4,3407.9,2.93434]
[1721391651448,1.053,3408.2,3407.9,2.93434]
[1721391651943,2.3747,3408.5,3407.9,2.93434]
[1721391652142,1.053,3408.4,3407.9,2.93434]
[1721391652343,1.053,3408.2,3407.9,2.93434]
[1721391652942,2.3747,3408.5,3407.9,2.93434]
[1721391653096,1.053,3408.4,3407.9,2.93434]
[1721391653295,1.053,3408.1,3407.9,2.93434]
[1721391653541,1.053,3408.1,3407.8,2.93443]
[1721391653748,1.053,3408.1,3407.6,2.93456]